[Event "Early-Titled-Tuesday-Blitz-May-14-2024"]
[Site "Chess.com"]
[Date "2024.05.14"]
[Round "1"]
[White "gau248"]
[Black "Sofia_Blokhin"]
[Result "1-0"]
[WhiteElo "2604"]
[BlackElo "2255"]
[TimeControl "180+1"]
[EndTime "8:07:24 PDT"]
[Termination "gau248 won by resignation"]

1. e4 {[%clk 0:00:19.6]} 1... c5 {[%clk 0:02:58.4]} 2. Nf3 {[%clk 0:00:19.3]}
2... e6 {[%clk 0:02:57.8]} 3. c3 {[%clk 0:00:19.3]} 3... Nf6 {[%clk 0:02:55.3]}
4. e5 {[%clk 0:00:19.7]} 4... Nd5 {[%clk 0:02:54.4]} 5. d4 {[%clk 0:00:20.6]}
5... cxd4 {[%clk 0:02:52.3]} 6. cxd4 {[%clk 0:00:21.5]} 6... d6 {[%clk
0:02:51.7]} 7. Bd3 {[%clk 0:00:22.1]} 7... Nc6 {[%clk 0:02:49.4]} 8. O-O {[%clk
0:00:22.6]} 8... Be7 {[%clk 0:02:45.4]} 9. Qe2 {[%clk 0:00:20.5]} 9... O-O
{[%clk 0:02:40.9]} 10. Nc3 {[%clk 0:00:20.5]} 10... dxe5 {[%clk 0:02:33.8]} 11.
dxe5 {[%clk 0:00:20.4]} 11... g6 {[%clk 0:02:07.9]} 12. Bh6 {[%clk 0:00:20]}
12... Re8 {[%clk 0:02:08.1]} 13. Rad1 {[%clk 0:00:20.5]} 13... Nxc3 {[%clk
0:01:59]} 14. bxc3 {[%clk 0:00:21.4]} 14... Qc7 {[%clk 0:01:46.4]} 15. h4 {[%clk
0:00:19.9]} 15... b6 {[%clk 0:01:42.5]} 16. h5 {[%clk 0:00:20.4]} 16... Bf8
{[%clk 0:01:36.6]} 17. Bf4 {[%clk 0:00:19.9]} 17... Bg7 {[%clk 0:01:33.9]} 18.
hxg6 {[%clk 0:00:19.5]} 18... fxg6 {[%clk 0:01:18.5]} 19. Rfe1 {[%clk
0:00:19.6]} 19... Rf8 {[%clk 0:01:17.6]} 20. Bg3 {[%clk 0:00:18.4]} 20... Bb7
{[%clk 0:01:13.6]} 21. Nd4 {[%clk 0:00:18.7]} 21... Nxd4 {[%clk 0:01:11.6]} 22.
cxd4 {[%clk 0:00:19.6]} 22... Bd5 {[%clk 0:01:07.7]} 23. Be4 {[%clk 0:00:19.6]}
23... Qb7 {[%clk 0:01:06.4]} 24. f3 {[%clk 0:00:19.5]} 24... Rac8 {[%clk
0:01:05.1]} 25. Kh2 {[%clk 0:00:19.8]} 25... Rf7 {[%clk 0:00:52.7]} 26. Rc1
{[%clk 0:00:19.6]} 26... Rfc7 {[%clk 0:00:52.7]} 27. Rb1 {[%clk 0:00:19.7]}
27... Bxe4 {[%clk 0:00:50]} 28. fxe4 {[%clk 0:00:20.6]} 28... Rc2 {[%clk
0:00:49.3]} 29. Qg4 {[%clk 0:00:20.8]} 29... Qe7 {[%clk 0:00:43.4]} 30. d5
{[%clk 0:00:20.8]} 30... R8c3 {[%clk 0:00:33.4]} 31. d6 {[%clk 0:00:20.4]} 31...
Qd7 {[%clk 0:00:33.1]} 32. Rb3 {[%clk 0:00:19.6]} 32... Rc4 {[%clk 0:00:31.7]}
33. Rf1 {[%clk 0:00:18.3]} 33... Qe8 {[%clk 0:00:24.2]} 34. Rbf3 {[%clk
0:00:18.1]} 34... h5 {[%clk 0:00:22.4]} 35. Qg5 {[%clk 0:00:17.4]} 35... Rxe4
{[%clk 0:00:20.3]} 36. Rd3 {[%clk 0:00:15.7]} 36... Ree2 {[%clk 0:00:18.8]} 37.
d7 {[%clk 0:00:14.6]} 37... Rxg2+ {[%clk 0:00:18.2]} 38. Kh1 {[%clk 0:00:15]}
1-0

[Event "Early-Titled-Tuesday-Blitz-May-14-2024"]
[Site "Chess.com"]
[Date "2024.05.14"]
[Round "1"]
[White "valeriocarnicelli"]
[Black "Blitz_Lover1"]
[Result "0-1"]
[WhiteElo "2550"]
[BlackElo "2229"]
[TimeControl "180+1"]
[EndTime "8:07:24 PDT"]
[Termination "Blitz_Lover1 won by resignation"]

1. Nf3 {[%clk 0:02:51.5]} 1... d5 {[%clk 0:02:59.5]} 2. c4 {[%clk 0:02:47]} 2...
c6 {[%clk 0:02:58.1]} 3. g3 {[%clk 0:02:44.2]} 3... Nf6 {[%clk 0:02:57.6]} 4.
Bg2 {[%clk 0:02:44]} 4... Bf5 {[%clk 0:02:52.4]} 5. O-O {[%clk 0:02:43.8]} 5...
e6 {[%clk 0:02:52.1]} 6. d4 {[%clk 0:02:41.7]} 6... Nbd7 {[%clk 0:02:50.5]} 7.
Nc3 {[%clk 0:02:31.7]} 7... dxc4 {[%clk 0:02:49.4]} 8. a4 {[%clk 0:02:28.5]}
8... a5 {[%clk 0:02:44.8]} 9. Nd2 {[%clk 0:02:22.3]} 9... Nb6 {[%clk 0:02:44.6]}
10. e4 {[%clk 0:02:22.5]} 10... Bg6 {[%clk 0:02:33.1]} 11. e5 {[%clk 0:02:21.1]}
11... Nfd5 {[%clk 0:02:32.2]} 12. Nde4 {[%clk 0:02:21]} 12... Be7 {[%clk
0:02:25.8]} 13. h4 {[%clk 0:02:19.7]} 13... h6 {[%clk 0:02:20.8]} 14. h5 {[%clk
0:02:15.7]} 14... Bf5 {[%clk 0:02:16.2]} 15. g4 {[%clk 0:02:12.9]} 15... Nxc3
{[%clk 0:02:14.4]} 16. bxc3 {[%clk 0:02:10.7]} 16... Bxe4 {[%clk 0:02:13.8]} 17.
Bxe4 {[%clk 0:02:11.2]} 17... Nd5 {[%clk 0:02:13.1]} 18. Qd2 {[%clk 0:01:54.4]}
18... b5 {[%clk 0:01:57.3]} 19. axb5 {[%clk 0:01:49.4]} 19... cxb5 {[%clk
0:01:58.2]} 20. f4 {[%clk 0:01:50]} 20... b4 {[%clk 0:01:55.9]} 21. f5 {[%clk
0:01:47]} 21... Bg5 {[%clk 0:01:48.2]} 22. Qf2 {[%clk 0:01:40.3]} 22... O-O
{[%clk 0:01:41.3]} 23. cxb4 {[%clk 0:01:20.5]} 23... Bxc1 {[%clk 0:01:29.9]} 24.
Raxc1 {[%clk 0:01:13.4]} 24... Qg5 {[%clk 0:01:27.9]} 25. Qf3 {[%clk 0:00:54.3]}
25... Rad8 {[%clk 0:01:21.7]} 26. bxa5 {[%clk 0:00:50.7]} 26... Ne3 {[%clk
0:01:18.5]} 27. Rfe1 {[%clk 0:00:39.7]} 27... Nxg4 {[%clk 0:01:14.6]} 28. Qg2
{[%clk 0:00:28.2]} 28... exf5 {[%clk 0:01:10.9]} 29. Bf3 {[%clk 0:00:23.7]}
29... Rxd4 {[%clk 0:01:06.9]} 30. Rc2 {[%clk 0:00:15.4]} 30... c3 {[%clk
0:00:47.9]} 31. Ra2 {[%clk 0:00:14.5]} 31... Rd2 {[%clk 0:00:46.9]} 32. Rxd2
{[%clk 0:00:14.4]} 32... cxd2 {[%clk 0:00:47.8]} 33. Rd1 {[%clk 0:00:13.2]}
33... Nxe5 {[%clk 0:00:46.2]} 34. Bb7 {[%clk 0:00:10.5]} 34... Qh4 {[%clk
0:00:37.2]} 35. a6 {[%clk 0:00:09.9]} 35... Qd4+ {[%clk 0:00:32]} 36. Kh1 {[%clk
0:00:09.2]} 36... Ng4 {[%clk 0:00:31.4]} 37. Qg1 {[%clk 0:00:04.3]} 37... Ne3
{[%clk 0:00:21.5]} 38. a7 {[%clk 0:00:02.4]} 38... Qxa7 {[%clk 0:00:21.1]} 39.
Rxd2 {[%clk 0:00:02.7]} 39... Qxb7+ {[%clk 0:00:20]} 40. Kh2 {[%clk 0:00:03.1]}
40... Ng4+ {[%clk 0:00:20.3]} 0-1

[Event "Early-Titled-Tuesday-Blitz-May-14-2024"]
[Site "Chess.com"]
[Date "2024.05.14"]
[Round "1"]
[White "malakismayil"]
[Black "sergoy"]
[Result "0-1"]
[WhiteElo "2540"]
[BlackElo "3015"]
[TimeControl "180+1"]
[EndTime "8:07:27 PDT"]
[Termination "sergoy won on time"]

1. e4 {[%clk 0:03:00.9]} 1... c5 {[%clk 0:03:00.1]} 2. Nf3 {[%clk 0:02:59.4]}
2... d6 {[%clk 0:03:00.8]} 3. Bb5+ {[%clk 0:02:55]} 3... Nd7 {[%clk 0:03:00.6]}
4. d4 {[%clk 0:02:51.6]} 4... cxd4 {[%clk 0:03:00.4]} 5. Qxd4 {[%clk 0:02:52.5]}
5... a6 {[%clk 0:03:00.1]} 6. Bc4 {[%clk 0:02:47.4]} 6... e6 {[%clk 0:02:48.7]}
7. O-O {[%clk 0:02:45.5]} 7... Ngf6 {[%clk 0:02:49]} 8. Nc3 {[%clk 0:02:41.5]}
8... Be7 {[%clk 0:02:49]} 9. Bg5 {[%clk 0:02:39.8]} 9... O-O {[%clk 0:02:46.9]}
10. Rad1 {[%clk 0:02:38.2]} 10... Qc7 {[%clk 0:02:45.9]} 11. Bb3 {[%clk
0:02:35.8]} 11... b6 {[%clk 0:02:43.9]} 12. Bh4 {[%clk 0:02:31.1]} 12... Bb7
{[%clk 0:02:38.5]} 13. Bg3 {[%clk 0:02:31.6]} 13... e5 {[%clk 0:02:38.9]} 14.
Qe3 {[%clk 0:02:26.2]} 14... Rac8 {[%clk 0:02:33.9]} 15. Rd2 {[%clk 0:02:25.1]}
15... b5 {[%clk 0:02:32.9]} 16. Rc1 {[%clk 0:02:02.9]} 16... b4 {[%clk
0:02:24.8]} 17. Nd5 {[%clk 0:02:01.7]} 17... Bxd5 {[%clk 0:02:23]} 18. Bxd5
{[%clk 0:02:02.6]} 18... Nxd5 {[%clk 0:02:23.3]} 19. Rxd5 {[%clk 0:02:03.2]}
19... Nf6 {[%clk 0:02:23.6]} 20. Rd2 {[%clk 0:01:59.9]} 20... Qc4 {[%clk
0:02:23.1]} 21. Re2 {[%clk 0:01:51.2]} 21... Qxa2 {[%clk 0:02:21.8]} 22. b3
{[%clk 0:01:49.5]} 22... Rc3 {[%clk 0:02:19]} 23. Qb6 {[%clk 0:01:45]} 23... Qb2
{[%clk 0:02:11.5]} 24. Rce1 {[%clk 0:01:37.4]} 24... Rxc2 {[%clk 0:01:50.4]} 25.
Rxc2 {[%clk 0:01:38.3]} 25... Qxc2 {[%clk 0:01:51.3]} 26. Qxb4 {[%clk
0:01:37.2]} 26... Qc6 {[%clk 0:01:52]} 27. Nxe5 {[%clk 0:01:31.5]} 27... dxe5
{[%clk 0:01:42.2]} 28. Qxe7 {[%clk 0:01:30.1]} 28... Qc3 {[%clk 0:01:31.9]} 29.
Rf1 {[%clk 0:01:17]} 29... Re8 {[%clk 0:01:28.2]} 30. Qb7 {[%clk 0:01:13.8]}
30... a5 {[%clk 0:01:24.3]} 31. f3 {[%clk 0:00:54]} 31... h6 {[%clk 0:01:20.9]}
32. Qb5 {[%clk 0:00:52.9]} 32... Qc7 {[%clk 0:01:05.1]} 33. Bh4 {[%clk
0:00:51.3]} 33... Rb8 {[%clk 0:01:04.3]} 34. Qd3 {[%clk 0:00:34]} 34... Nh5
{[%clk 0:01:02.3]} 35. Bf2 {[%clk 0:00:24.3]} 35... Nf4 {[%clk 0:01:01.6]} 36.
Qe3 {[%clk 0:00:24.5]} 36... Qc2 {[%clk 0:00:59.5]} 37. Qa7 {[%clk 0:00:17.5]}
37... Rxb3 {[%clk 0:00:49.4]} 38. Qxa5 {[%clk 0:00:16.7]} 38... Rb1 {[%clk
0:00:50.1]} 39. Rxb1 {[%clk 0:00:13.8]} 39... Qxb1+ {[%clk 0:00:51]} 40. Qe1
{[%clk 0:00:13.9]} 40... Qd3 {[%clk 0:00:51.8]} 41. h4 {[%clk 0:00:06.2]} 41...
Qc2 {[%clk 0:00:48]} 42. Qe3 {[%clk 0:00:05.4]} 42... Kh7 {[%clk 0:00:41.5]} 43.
Kh2 {[%clk 0:00:05.7]} 43... f6 {[%clk 0:00:41.5]} 44. Qc5 {[%clk 0:00:04]}
44... Qb2 {[%clk 0:00:37.5]} 45. Qe3 {[%clk 0:00:03.9]} 45... h5 {[%clk
0:00:37.2]} 46. Qb6 {[%clk 0:00:02.5]} 46... Qa2 {[%clk 0:00:35]} 47. Qa7 {[%clk
0:00:02.7]} 47... Qe2 {[%clk 0:00:34.3]} 48. Qe3 {[%clk 0:00:02.8]} 48... Qf1
{[%clk 0:00:34.9]} 0-1

[Event "Early-Titled-Tuesday-Blitz-May-14-2024"]
[Site "Chess.com"]
[Date "2024.05.14"]
[Round "1"]
[White "JJDAREK"]
[Black "TigranMukhutdinov"]
[Result "0-1"]
[WhiteElo "2399"]
[BlackElo "2711"]
[TimeControl "180+1"]
[EndTime "8:07:27 PDT"]
[Termination "TigranMukhutdinov won by resignation"]

1. d4 {[%clk 0:03:00.9]} 1... d6 {[%clk 0:02:56.9]} 2. Nf3 {[%clk 0:02:59.1]}
2... Bg4 {[%clk 0:02:56.3]} 3. e4 {[%clk 0:02:54.9]} 3... Nf6 {[%clk 0:02:54.2]}
4. Nbd2 {[%clk 0:02:51.6]} 4... c6 {[%clk 0:02:52.9]} 5. c3 {[%clk 0:02:49.7]}
5... e6 {[%clk 0:02:48.2]} 6. h3 {[%clk 0:02:47.2]} 6... Bh5 {[%clk 0:02:31.4]}
7. Bd3 {[%clk 0:02:44.8]} 7... Be7 {[%clk 0:02:30.7]} 8. O-O {[%clk 0:02:44.1]}
8... O-O {[%clk 0:02:30.5]} 9. Re1 {[%clk 0:02:37.6]} 9... d5 {[%clk 0:02:29]}
10. e5 {[%clk 0:02:37]} 10... Nfd7 {[%clk 0:02:29.1]} 11. a3 {[%clk 0:02:27.6]}
11... c5 {[%clk 0:02:24.6]} 12. b4 {[%clk 0:02:24.6]} 12... cxd4 {[%clk
0:02:24.8]} 13. cxd4 {[%clk 0:02:25.5]} 13... Nc6 {[%clk 0:02:25.5]} 14. Bb2
{[%clk 0:02:13.2]} 14... Bg6 {[%clk 0:02:23.9]} 15. Bxg6 {[%clk 0:02:12.3]}
15... hxg6 {[%clk 0:02:24.8]} 16. Rc1 {[%clk 0:02:11.2]} 16... Nb6 {[%clk
0:02:23.8]} 17. Qe2 {[%clk 0:02:02.7]} 17... Rc8 {[%clk 0:02:22.3]} 18. Qd3
{[%clk 0:01:39.9]} 18... Qd7 {[%clk 0:02:07.1]} 19. Rc2 {[%clk 0:01:38.4]} 19...
a6 {[%clk 0:02:05.5]} 20. Rec1 {[%clk 0:01:38.4]} 20... Na7 {[%clk 0:02:06.2]}
21. Nb3 {[%clk 0:01:31.6]} 21... Nc4 {[%clk 0:02:03.9]} 22. Nc5 {[%clk
0:01:23.3]} 22... Bxc5 {[%clk 0:01:58.9]} 23. bxc5 {[%clk 0:01:20.4]} 23... Nc6
{[%clk 0:01:51.9]} 24. Nd2 {[%clk 0:01:17.9]} 24... N6a5 {[%clk 0:01:50.4]} 25.
Bc3 {[%clk 0:01:05]} 25... Nxd2 {[%clk 0:01:45]} 26. Bxa5 {[%clk 0:00:58.2]}
26... Nc4 {[%clk 0:01:43.6]} 27. Bb4 {[%clk 0:00:56.8]} 27... Rfe8 {[%clk
0:01:36.7]} 28. Qb3 {[%clk 0:00:55]} 28... f6 {[%clk 0:01:29.4]} 29. exf6 {[%clk
0:00:53.9]} 29... gxf6 {[%clk 0:01:30.3]} 30. Bd2 {[%clk 0:00:32.1]} 30... Kf7
{[%clk 0:01:20.5]} 31. Bf4 {[%clk 0:00:30.3]} 31... g5 {[%clk 0:00:50.3]} 32.
Bd6 {[%clk 0:00:27.1]} 32... Rc6 {[%clk 0:00:44.9]} 33. Rxc4 {[%clk 0:00:25]}
33... dxc4 {[%clk 0:00:42.3]} 34. Rxc4 {[%clk 0:00:22.3]} 34... b5 {[%clk
0:00:38.6]} 35. Rc3 {[%clk 0:00:20.3]} 35... Rec8 {[%clk 0:00:37.3]} 36. Re3
{[%clk 0:00:19.4]} 36... Rxd6 {[%clk 0:00:32.3]} 37. cxd6 {[%clk 0:00:19.2]}
37... Rc1+ {[%clk 0:00:33.2]} 38. Kh2 {[%clk 0:00:18.4]} 38... Qxd6+ {[%clk
0:00:33.9]} 39. g3 {[%clk 0:00:18.2]} 39... Qc6 {[%clk 0:00:29.1]} 40. d5 {[%clk
0:00:10.7]} 40... Qxd5 {[%clk 0:00:29.1]} 41. Qxd5 {[%clk 0:00:10.3]} 41... exd5
{[%clk 0:00:30]} 42. g4 {[%clk 0:00:09.2]} 42... Rc4 {[%clk 0:00:25.3]} 43. Kg3
{[%clk 0:00:09]} 43... d4 {[%clk 0:00:25.3]} 44. Rd3 {[%clk 0:00:08.4]} 44...
Rc3 {[%clk 0:00:21.9]} 45. Rxc3 {[%clk 0:00:08.2]} 45... dxc3 {[%clk 0:00:22.8]}
0-1

[Event "Early-Titled-Tuesday-Blitz-May-14-2024"]
[Site "Chess.com"]
[Date "2024.05.14"]
[Round "1"]
[White "KnightDuta"]
[Black "LileKoridze"]
[Result "1-0"]
[WhiteElo "2731"]
[BlackElo "2404"]
[TimeControl "180+1"]
[EndTime "8:07:28 PDT"]
[Termination "KnightDuta won by resignation"]

1. d4 {[%clk 0:03:00.5]} 1... Nf6 {[%clk 0:02:59.9]} 2. Bf4 {[%clk 0:03:01]}
2... d5 {[%clk 0:03:00]} 3. e3 {[%clk 0:03:01.4]} 3... c5 {[%clk 0:02:57.8]} 4.
Nd2 {[%clk 0:03:02]} 4... Nc6 {[%clk 0:02:58.1]} 5. Ngf3 {[%clk 0:03:02.4]} 5...
Bg4 {[%clk 0:02:58]} 6. Bb5 {[%clk 0:02:59.7]} 6... e6 {[%clk 0:02:57.9]} 7. c3
{[%clk 0:02:59.7]} 7... Bd6 {[%clk 0:02:56.8]} 8. Qa4 {[%clk 0:02:58]} 8... O-O
{[%clk 0:02:43.1]} 9. Bxc6 {[%clk 0:02:57.5]} 9... bxc6 {[%clk 0:02:41.5]} 10.
Bxd6 {[%clk 0:02:57.8]} 10... Qxd6 {[%clk 0:02:40.6]} 11. Ne5 {[%clk 0:02:58.5]}
11... cxd4 {[%clk 0:02:38]} 12. cxd4 {[%clk 0:02:59.4]} 12... Bf5 {[%clk
0:02:23.8]} 13. O-O {[%clk 0:02:32]} 13... c5 {[%clk 0:02:23.4]} 14. Qa3 {[%clk
0:02:32.4]} 14... Rfc8 {[%clk 0:02:20.2]} 15. Rfc1 {[%clk 0:02:25]} 15... Qb8
{[%clk 0:02:15.8]} 16. Nb3 {[%clk 0:01:45.5]} 16... c4 {[%clk 0:02:09.5]} 17.
Nc5 {[%clk 0:01:43.9]} 17... Qb5 {[%clk 0:01:44.5]} 18. b3 {[%clk 0:01:36.2]}
18... Ne4 {[%clk 0:01:26.1]} 19. bxc4 {[%clk 0:01:16]} 19... dxc4 {[%clk
0:01:24.9]} 20. Nxe4 {[%clk 0:01:15.9]} 20... Bxe4 {[%clk 0:01:23.9]} 21. Qe7
{[%clk 0:01:16.6]} 21... Bg6 {[%clk 0:01:13.2]} 22. a4 {[%clk 0:01:16.6]} 22...
Qd5 {[%clk 0:01:09.8]} 23. Qb4 {[%clk 0:01:00.6]} 23... Bd3 {[%clk 0:00:55.1]}
24. Qc3 {[%clk 0:00:45.3]} 24... h6 {[%clk 0:00:46.7]} 25. Nxd3 {[%clk
0:00:45.2]} 25... cxd3 {[%clk 0:00:47.3]} 26. Qxc8+ {[%clk 0:00:35.1]} 26...
Rxc8 {[%clk 0:00:46.9]} 27. Rxc8+ {[%clk 0:00:36]} 27... Kh7 {[%clk 0:00:47.5]}
28. Rc3 {[%clk 0:00:36.9]} 28... d2 {[%clk 0:00:44.7]} 29. Rd3 {[%clk
0:00:35.5]} 29... Qa5 {[%clk 0:00:43.4]} 30. h3 {[%clk 0:00:22]} 30... Qb4
{[%clk 0:00:38.2]} 31. a5 {[%clk 0:00:18.4]} 31... a6 {[%clk 0:00:38.2]} 32. Rd1
{[%clk 0:00:17.7]} 32... Qxa5 {[%clk 0:00:38.3]} 33. R3xd2 {[%clk 0:00:18.6]}
33... Qb5 {[%clk 0:00:38.7]} 34. Ra2 {[%clk 0:00:18.7]} 34... Qh5 {[%clk
0:00:30.2]} 35. Rad2 {[%clk 0:00:16.8]} 35... a5 {[%clk 0:00:29.4]} 36. e4
{[%clk 0:00:16.8]} 36... a4 {[%clk 0:00:24.3]} 37. d5 {[%clk 0:00:16.3]} 37...
exd5 {[%clk 0:00:19.5]} 38. exd5 {[%clk 0:00:17.2]} 38... Qg5 {[%clk 0:00:19.7]}
39. d6 {[%clk 0:00:17.5]} 39... a3 {[%clk 0:00:18.4]} 40. d7 {[%clk 0:00:18.1]}
40... Qd8 {[%clk 0:00:18.5]} 41. Rc2 {[%clk 0:00:17.9]} 41... a2 {[%clk
0:00:14.4]} 42. Rxa2 {[%clk 0:00:17.8]} 42... Kg6 {[%clk 0:00:14.1]} 43. Ra6+
{[%clk 0:00:17.4]} 43... f6 {[%clk 0:00:13.4]} 44. Ra8 {[%clk 0:00:17.6]} 1-0

[Event "Early-Titled-Tuesday-Blitz-May-14-2024"]
[Site "Chess.com"]
[Date "2024.05.14"]
[Round "1"]
[White "Denis_Makhnyov"]
[Black "ChadBiryani"]
[Result "1-0"]
[WhiteElo "2991"]
[BlackElo "2537"]
[TimeControl "180+1"]
[EndTime "8:07:29 PDT"]
[Termination "Denis_Makhnyov won on time"]

1. d4 {[%clk 0:02:57.7]} 1... f5 {[%clk 0:02:57.3]} 2. Bg5 {[%clk 0:02:41.4]}
2... Nf6 {[%clk 0:02:53.6]} 3. Nc3 {[%clk 0:02:30.4]} 3... d5 {[%clk 0:02:46.7]}
4. e3 {[%clk 0:02:24.1]} 4... e6 {[%clk 0:02:38.7]} 5. h4 {[%clk 0:02:17.4]}
5... Bb4 {[%clk 0:02:36.1]} 6. Ne2 {[%clk 0:02:16.7]} 6... O-O {[%clk
0:02:35.2]} 7. a3 {[%clk 0:02:16.4]} 7... Be7 {[%clk 0:02:33.7]} 8. Nf4 {[%clk
0:02:08.4]} 8... c6 {[%clk 0:02:22.6]} 9. h5 {[%clk 0:02:04.7]} 9... Qe8 {[%clk
0:02:19.1]} 10. Bd3 {[%clk 0:02:00.9]} 10... Ne4 {[%clk 0:01:57.4]} 11. Bxe7
{[%clk 0:01:47.7]} 11... Qxe7 {[%clk 0:01:58.3]} 12. h6 {[%clk 0:01:01.5]} 12...
g6 {[%clk 0:01:47.2]} 13. Nce2 {[%clk 0:00:32]} 13... Nd7 {[%clk 0:01:40.7]} 14.
c4 {[%clk 0:00:31.9]} 14... e5 {[%clk 0:01:23.8]} 15. dxe5 {[%clk 0:00:30.9]}
15... Nxe5 {[%clk 0:01:23.4]} 16. cxd5 {[%clk 0:00:30.4]} 16... Nxf2 {[%clk
0:01:18]} 17. Kxf2 {[%clk 0:00:24.5]} 17... Ng4+ {[%clk 0:01:18.4]} 18. Ke1
{[%clk 0:00:23.1]} 18... Qxe3 {[%clk 0:01:09.6]} 19. Rf1 {[%clk 0:00:23.1]}
19... Re8 {[%clk 0:00:52.6]} 20. Qb3 {[%clk 0:00:22.9]} 20... Qg3+ {[%clk
0:00:26.7]} 21. Kd2 {[%clk 0:00:22.7]} 21... Qe3+ {[%clk 0:00:24.5]} 22. Kc2
{[%clk 0:00:23.1]} 22... Qc5+ {[%clk 0:00:20.9]} 23. Kb1 {[%clk 0:00:23.3]}
23... Ne3 {[%clk 0:00:18.2]} 24. dxc6+ {[%clk 0:00:19.9]} 24... Kf8 {[%clk
0:00:13.3]} 25. Rc1 {[%clk 0:00:20.1]} 25... Qe7 {[%clk 0:00:05.8]} 26. Qc3
{[%clk 0:00:18.1]} 26... Qf7 {[%clk 0:00:03.4]} 27. Nd4 {[%clk 0:00:07.9]} 27...
b6 {[%clk 0:00:02.9]} 28. Nb5 {[%clk 0:00:07.6]} 28... Re7 {[%clk 0:00:02.8]}
29. Qh8+ {[%clk 0:00:06.2]} 29... Qg8 {[%clk 0:00:03.4]} 30. Qxg8+ {[%clk
0:00:06.5]} 30... Kxg8 {[%clk 0:00:03.7]} 31. Re1 {[%clk 0:00:06.1]} 31... Kf7
{[%clk 0:00:03.4]} 32. Nd6+ {[%clk 0:00:05.6]} 32... Kf8 {[%clk 0:00:03.5]} 33.
b4 {[%clk 0:00:04.5]} 33... a6 {[%clk 0:00:02.9]} 34. Kb2 {[%clk 0:00:04.8]}
34... a5 {[%clk 0:00:03.1]} 35. b5 {[%clk 0:00:04.9]} 35... Nd5 {[%clk
0:00:00.4]} 36. Nxd5 {[%clk 0:00:04.5]} 36... Rxe1 {[%clk 0:00:00.9]} 37. Rxe1
{[%clk 0:00:05]} 1-0

[Event "Early-Titled-Tuesday-Blitz-May-14-2024"]
[Site "Chess.com"]
[Date "2024.05.14"]
[Round "1"]
[White "capatl"]
[Black "crosky"]
[Result "1-0"]
[WhiteElo "2635"]
[BlackElo "2314"]
[TimeControl "180+1"]
[EndTime "8:07:29 PDT"]
[Termination "capatl won by resignation"]

1. b3 {[%clk 0:02:57]} 1... e5 {[%clk 0:02:59.5]} 2. Bb2 {[%clk 0:02:56.8]} 2...
Nc6 {[%clk 0:03:00.1]} 3. c4 {[%clk 0:02:56.6]} 3... Nf6 {[%clk 0:02:41.9]} 4.
e3 {[%clk 0:02:53.8]} 4... g6 {[%clk 0:02:40.1]} 5. Nf3 {[%clk 0:02:46]} 5... d6
{[%clk 0:02:25.4]} 6. d4 {[%clk 0:02:45.3]} 6... e4 {[%clk 0:02:25.9]} 7. Nfd2
{[%clk 0:02:44.6]} 7... Qe7 {[%clk 0:02:10.4]} 8. Nc3 {[%clk 0:02:42.4]} 8...
Bf5 {[%clk 0:02:01.8]} 9. h3 {[%clk 0:02:40.4]} 9... h5 {[%clk 0:02:00.9]} 10.
a3 {[%clk 0:02:22.4]} 10... Bh6 {[%clk 0:02:00.2]} 11. Nd5 {[%clk 0:02:06.8]}
11... Nxd5 {[%clk 0:01:56.8]} 12. cxd5 {[%clk 0:02:07.7]} 12... Nb8 {[%clk
0:01:49.7]} 13. Bb5+ {[%clk 0:01:43.7]} 13... Kf8 {[%clk 0:01:43]} 14. Rc1
{[%clk 0:01:37.7]} 14... a6 {[%clk 0:01:37.6]} 15. Be2 {[%clk 0:01:34.8]} 15...
Kg7 {[%clk 0:01:37]} 16. Qc2 {[%clk 0:01:28.1]} 16... Rc8 {[%clk 0:01:36.1]} 17.
g4 {[%clk 0:01:25.7]} 17... Qh4 {[%clk 0:01:23.5]} 18. gxf5 {[%clk 0:00:52.5]}
18... Bxe3 {[%clk 0:01:23.2]} 19. Rf1 {[%clk 0:00:24.6]} 19... Bxf2+ {[%clk
0:01:22.1]} 20. Kd1 {[%clk 0:00:21.5]} 20... gxf5 {[%clk 0:01:08.8]} 21. Nc4
{[%clk 0:00:18.4]} 21... Nd7 {[%clk 0:01:04.3]} 22. Qd2 {[%clk 0:00:15.6]} 22...
Nf6 {[%clk 0:00:52.5]} 23. Kc2 {[%clk 0:00:15.4]} 23... Nxd5 {[%clk 0:00:51.4]}
24. Kb1 {[%clk 0:00:15.3]} 24... b5 {[%clk 0:00:50.9]} 25. Na5 {[%clk
0:00:13.7]} 25... b4 {[%clk 0:00:46.1]} 26. axb4 {[%clk 0:00:11.7]} 26... Rab8
{[%clk 0:00:46.6]} 27. Nc6 {[%clk 0:00:11.9]} 27... Rb6 {[%clk 0:00:47]} 28. Bc4
{[%clk 0:00:11.6]} 28... Be3 {[%clk 0:00:39.6]} 29. Qg2+ {[%clk 0:00:11.2]}
29... Kh7 {[%clk 0:00:24.2]} 30. Bxd5 {[%clk 0:00:11.4]} 30... Bxc1 {[%clk
0:00:24.2]} 31. Bxc1 {[%clk 0:00:11.1]} 31... Rg8 {[%clk 0:00:20.4]} 32. Qd2
{[%clk 0:00:11.2]} 32... Rg6 {[%clk 0:00:19.7]} 33. Qf4 {[%clk 0:00:12.1]} 33...
Qxf4 {[%clk 0:00:18.8]} 34. Rxf4 {[%clk 0:00:13]} 34... a5 {[%clk 0:00:19.6]}
35. Ne7 {[%clk 0:00:11.3]} 35... Rg1 {[%clk 0:00:14.7]} 36. Rxf5 {[%clk
0:00:11]} 36... Rxb4 {[%clk 0:00:14.3]} 37. Rxf7+ {[%clk 0:00:10.7]} 37... Kh8
{[%clk 0:00:11.5]} 38. Rf8+ {[%clk 0:00:10.7]} 38... Kh7 {[%clk 0:00:11.4]} 39.
Bxe4+ {[%clk 0:00:11.2]} 39... Kg7 {[%clk 0:00:11.5]} 40. Rg8+ {[%clk
0:00:12.1]} 40... Kf7 {[%clk 0:00:11.2]} 41. Rxg1 {[%clk 0:00:13]} 41... Kxe7
{[%clk 0:00:11]} 42. Re1 {[%clk 0:00:13.5]} 42... Kd7 {[%clk 0:00:09.8]} 43. Bd5
{[%clk 0:00:13.3]} 43... a4 {[%clk 0:00:10]} 44. Be6+ {[%clk 0:00:13.9]} 44...
Kc6 {[%clk 0:00:10]} 45. Bd2 {[%clk 0:00:13.9]} 45... Rb8 {[%clk 0:00:09.8]} 46.
b4 {[%clk 0:00:13.6]} 46... Rf8 {[%clk 0:00:08.5]} 47. d5+ {[%clk 0:00:14.5]}
47... Kb6 {[%clk 0:00:08.2]} 48. Rc1 {[%clk 0:00:15.4]} 48... Rf2 {[%clk
0:00:08.4]} 49. Be3+ {[%clk 0:00:15.7]} 1-0